lending/lending_fUSD_20260119
["ID","MTS","AMOUNT","RATE_DAILY","PERIOD"]
[402685145,1768803044167,-535.0,0.0001712,2]
[402685146,1768803044176,-486.0,0.0001712,2]
[402685147,1768803044185,-250.0,0.00017126,2]
[402685148,1768803044195,-4577.0,0.00017129,2]
[402685149,1768803044204,-329.22631029,0.00017132,2]
[402685150,1768803044213,-14033.02565403,0.00017132,2]
[402685151,1768803044224,-455.72018722,0.00017144,2]
[402685152,1768803044233,-1680.0,0.00017145,2]
[402685153,1768803044243,-2500.0,0.00017156,2]
[402685154,1768803044254,-300.0,0.00017156,2]
[402685155,1768803044263,-300.0,0.00017156,2]
[402685156,1768803044274,-306.0595482,0.00017156,2]
[402685157,1768803044284,-1971.24254139,0.00017156,2]
[402685158,1768803044295,-600.0,0.00017156,2]
[402685159,1768803044306,-193.0,0.00017156,2]
[402685160,1768803044316,-250.0,0.00017156,2]
[402685161,1768803044325,-195.0,0.00017156,2]
[402685162,1768803044334,-195.0,0.00017157,2]
[402685163,1768803044344,-298.07070388,0.00017157,2]
[402685164,1768803044353,-200.0,0.00017157,2]
[402685165,1768803044362,-200.0,0.00017157,2]
[402685166,1768803044379,-200.0,0.00017157,2]
[402685167,1768803044391,-200.0,0.00017157,2]
[402685168,1768803044401,-203.43081976,0.00017157,2]
[402685169,1768803044411,-557.2018649,0.00017175,2]
[402685170,1768803044420,-502.0,0.00017175,2]
[402685171,1768803044430,-150.0,0.00017178,2]
[402685172,1768803044439,-1228.93,0.00017178,2]
[402685173,1768803044448,-150.0,0.00017178,2]
[402685174,1768803044458,-150.0,0.00017178,2]
[402685175,1768803044469,-1228.93,0.00017178,2]
[402685176,1768803044478,-150.0,0.00017178,2]
[402685177,1768803044488,-150.0,0.00017178,2]
[402685178,1768803044498,-150.0,0.00017178,2]
[402685179,1768803044508,-150.0,0.00017178,2]
[402685180,1768803044518,-150.0,0.00017178,2]
[402685181,1768803044528,-150.0,0.00017178,2]
[402685182,1768803044538,-1228.93,0.00017178,2]
[402685183,1768803044548,-1228.93,0.00017178,2]
[402685184,1768803044557,-150.0,0.00017178,2]
[402685185,1768803044567,-150.0,0.00017178,2]
[402685186,1768803044576,-1185.08,0.00017178,2]
[402685187,1768803044585,-150.0,0.00017178,2]
[402685188,1768803044595,-150.0,0.00017178,2]
[402685189,1768803044605,-176.36,0.00017178,2]
[402685190,1768803044614,-150.0,0.00017178,2]
[402685191,1768803044623,-164.33342607,0.00017205,2]
[402685192,1768803044633,-684.72260862,0.00017205,2]
[402685193,1768803044643,-150.0,0.00017229,2]
[402685194,1768803044655,-1000.0,0.0001726,2]
[402685195,1768803044666,-172.57,0.00017264,2]
[402685196,1768803044676,-684.72260862,0.00017288,2]
[402685197,1768803044685,-496.29972123,0.00017297,2]
[402685198,1768803044695,-823.0,0.00017306,2]
[402685199,1768803044705,-376.4,0.00017312,2]
[402685200,1768803044715,-164.33342607,0.00017315,2]
[402685201,1768803044725,-823.0,0.0001733,2]
[402685202,1768803044734,-650.73,0.0001734,2]
[402685203,1768803044744,-823.0,0.00017341,2]
[402685204,1768803044753,-684.72260862,0.00017342,2]
[402685205,1768803044762,-163.0,0.0001736,2]
[402685206,1768803044771,-163.0,0.0001736,2]
[402685207,1768803044780,-14033.02565403,0.00017388,2]
[402685208,1768803044790,-164.33342607,0.00017397,2]
[402685209,1768803044799,-150.0,0.000174,2]
[402685210,1768803044809,-900.0,0.000174,6]
[402685211,1768803044818,-684.72260862,0.00017425,2]
[402685212,1768803044827,-150.0,0.00017451,2]
[402685213,1768803044836,-166.66,0.00017465,2]
[402685214,1768803044846,-823.0,0.00017472,2]
[402685215,1768803044855,-164.33342607,0.00017479,2]
[402685216,1768803044864,-823.0,0.00017482,2]
[402685217,1768803044873,-292.0,0.00017485,2]
[402685218,1768803044885,-150.0,0.00017486,2]
[402685219,1768803044895,-181.08010149,0.00017492,2]
[402685220,1768803044904,-595.37131296,0.00017492,2]
[402685221,1768803044921,-1990.1,0.00017497,2]
[402685222,1768803044930,-1000.0,0.000175,2]
[402685223,1768803044941,-1200.0,0.000175,6]
[402685224,1768803044951,-150.0,0.00017506,2]
[402685225,1768803044960,-684.72260862,0.00017507,2]
[402685226,1768803044970,-14815.0,0.00017509,2]
[402685227,1768803044979,-329.22631029,0.00017516,2]
[402685228,1768803044990,-1600.0,0.00017534,2]
[402685229,1768803045000,-1000.0,0.00017534,2]
[402685230,1768803045009,-155.58622274,0.00017536,2]
[402685231,1768803045019,-1990.1,0.00017543,2]
[402685232,1768803045029,-150.0,0.00017561,2]
[402685233,1768803045039,-164.33342607,0.00017562,2]
[402685234,1768803045048,-684.72260862,0.00017562,2]
[402685235,1768803045058,-1538.833619,0.00017573,2]
[402685236,1768803045067,-1990.1,0.00017588,2]
[402685237,1768803045076,-500.0,0.00017594,2]
[402685238,1768803045086,-496.29972121,0.00017599,2]
[402685239,1768803045095,-200.0,0.000176,6]
[402685240,1768803045105,-160.34,0.00017603,2]
[402685241,1768803045115,-650.73385841,0.00017614,2]
[402685242,1768803045124,-222.52118591,0.00017615,2]
[402685243,1768803045134,-1990.1,0.00017634,2]
[402685244,1768803045144,-548.06272836,0.0001764,2]
[402685245,1768803045156,-164.33342607,0.00017644,2]
[402685246,1768803045167,-684.72260862,0.00017644,2]
[402685247,1768803045176,-14033.02565403,0.00017644,2]
[402685248,1768803045186,-835.0,0.0001768,2]
[402685249,1768803045196,-557.0,0.0001768,2]
[402685250,1768803045205,-1990.1,0.0001768,2]
[402685251,1768803045214,-172.57,0.00017682,2]
[402685252,1768803045224,-14815.0,0.00017689,2]
[402685253,1768803045234,-684.72260862,0.00017699,2]
[402685254,1768803045244,-200.0,0.000177,6]
[402685255,1768803045258,-1000.0,0.000177,2]
[402685256,1768803045270,-376.4,0.00017722,2]
[402685257,1768803045280,-292.0,0.00017725,2]
[402685258,1768803045291,-150.0,0.00017726,2]
[402685259,1768803045302,-1990.1,0.00017726,2]
[402685260,1768803045313,-1700.0,0.00017726,7]
[402685261,1768803045323,-164.33342607,0.00017726,2]
[402685262,1768803045333,-150.0,0.00017743,2]
[402685263,1768803045343,-200.0,0.00017746,2]
[402685264,1768803045352,-1000.0,0.00017757,2]
[402685265,1768803045362,-615.674,0.0001776,2]
[402685266,1768803045372,-1332.0,0.0001776,2]
[402685267,1768803045383,-1414.045,0.0001776,2]
[402685268,1768803045393,-1268.0,0.0001776,2]
[402685269,1768803045403,-412.0,0.0001776,2]
[402685270,1768803045413,-292.0,0.0001776,2]
[402685271,1768803045424,-151.60783167,0.00017764,2]
[402685272,1768803045435,-915.0,0.00017769,2]
[402685273,1768803045447,-1202.0,0.00017769,2]
[402685274,1768803045457,-2440.0,0.00017769,2]
[402685275,1768803045471,-4826.0,0.00017769,2]
[402685276,1768803045481,-6562.0,0.00017769,2]
[402685277,1768803045491,-1990.1,0.00017771,2]
[402685278,1768803045501,-150.0,0.00017781,2]
[402685279,1768803045511,-684.72260862,0.00017781,2]
[402685280,1768803045521,-477.71012576,0.00017788,2]
[402685281,1768803045531,-842.73728664,0.00017788,2]
[402685282,1768803045541,-1260.68458,0.00017788,2]
[402685283,1768803045551,-1705.7502,0.00017788,2]
[402685284,1768803045561,-200.0,0.000178,6]
[402685285,1768803045571,-292.0,0.00017805,2]
[402685286,1768803045580,-164.33342607,0.00017808,2]
[402685287,1768803045590,-1000.0,0.00017808,2]
[402685288,1768803045599,-151.0,0.00017808,2]
[402685289,1768803045609,-157.76681245,0.00017808,2]
[402685291,1768803045619,-1990.1,0.00017817,2]
[402685292,1768803045628,-256.16938,0.0001782,2]
[402685293,1768803045638,-5224.98447911,0.0001783,2]
[402685294,1768803045647,-150.0,0.00017836,2]
[402685295,1768803045657,-684.72260862,0.00017836,2]
[402685296,1768803045668,-292.0,0.00017836,2]
[402685297,1768803045680,-4762.0,0.00017841,2]
[402685298,1768803045691,-200.0,0.00017856,2]
[402685299,1768803045701,-1027.83837402,0.00017861,2]
[402685300,1768803045711,-1990.1,0.00017863,2]
[402685301,1768803045720,-14815.0,0.0001787,2]
[402685302,1768803045730,-164.33342607,0.0001789,2]
[402685303,1768803045739,-549.27828535,0.00017899,2]
[402685304,1768803045749,-25000.0,0.000179,3]
[402685305,1768803045758,-329.22631029,0.000179,2]
[402685306,1768803045768,-231.92767047,0.000179,2]
[402685307,1768803045778,-25000.0,0.000179,3]
[402685308,1768803045787,-953.18553525,0.000179,2]
[402685309,1768803045797,-953.18553525,0.000179,2]
[402685310,1768803045807,-953.18553525,0.000179,2]
[402685311,1768803045816,-953.18553525,0.000179,2]
[402685312,1768803045825,-953.18553525,0.000179,2]
[402685313,1768803045835,-953.18553525,0.000179,2]
[402685314,1768803045844,-200.0,0.000179,6]
[402685315,1768803045854,-1669.55386707,0.000179,2]
[402685316,1768803045864,-14033.02565403,0.000179,2]
[402685317,1768803045873,-496.29972121,0.000179,2]
[402685318,1768803045884,-500.0,0.000179,2]
[402685319,1768803045895,-500.0,0.000179,2]
[402685320,1768803045906,-500.0,0.000179,2]
[402685321,1768803045916,-500.0,0.000179,2]
[402685322,1768803045925,-500.0,0.000179,2]
[402685323,1768803045936,-500.0,0.000179,2]
[402685324,1768803045946,-500.0,0.000179,2]
[402685325,1768803045956,-500.0,0.000179,2]
[402685326,1768803045965,-500.0,0.000179,2]
[402685327,1768803045975,-500.0,0.000179,2]
[402685328,1768803045985,-500.0,0.000179,2]
[402685329,1768803045995,-500.0,0.000179,2]
[402685330,1768803046005,-500.0,0.000179,2]
[402685331,1768803046014,-500.0,0.000179,2]
[402685332,1768803046024,-500.0,0.000179,2]
[402685333,1768803046035,-500.0,0.000179,2]
[402685334,1768803046045,-500.0,0.000179,2]
[402685335,1768803046056,-500.0,0.000179,2]
[402685336,1768803046067,-500.0,0.000179,2]
[402685337,1768803046078,-500.0,0.000179,2]
[402685338,1768803046088,-500.0,0.000179,2]
[402685339,1768803046100,-500.0,0.000179,2]
[402685340,1768803046111,-500.0,0.000179,2]
[402685341,1768803046122,-500.0,0.000179,2]
[402685342,1768803046132,-500.0,0.000179,2]
[402685343,1768803046142,-500.0,0.000179,2]
[402685344,1768803046154,-500.0,0.000179,2]
[402685345,1768803046163,-500.0,0.000179,2]
[402685346,1768803046173,-500.0,0.000179,2]
[402685347,1768803046183,-500.0,0.000179,2]
[402685348,1768803046192,-1990.1,0.00017909,2]
[402685349,1768803046203,-684.72260862,0.00017918,2]
[402685350,1768803046213,-634.0,0.0001792,2]
[402685351,1768803046224,-1990.1,0.00017954,2]
[402685352,1768803046233,-500.0,0.00017967,2]
[402685353,1768803046243,-164.33342607,0.00017973,2]
[402685354,1768803046253,-684.72260862,0.00017973,2]
[402685355,1768803046263,-150.0,0.00017973,2]
[402685356,1768803046272,-500.0,0.00017973,2]
[402685358,1768803046282,-500.0,0.00017982,2]
[402685359,1768803046291,-197.72778731,0.00017982,2]
[402685360,1768803046301,-33941.235699,0.00017983,2]
[402685361,1768803046311,-15823.7531598,0.00017991,2]
[402685362,1768803046320,-942.4812229,0.00017991,2]
[402685363,1768803046330,-150.0,0.00017999,2]
[402685364,1768803046339,-200.35890483,0.00017999,2]
[402685365,1768803046350,-155.0,0.00017999,2]
[402685366,1768803046359,-500.0,0.00017999,2]
[402685367,1768803046369,-500.0,0.00017999,2]
[402685368,1768803046379,-500.0,0.00017999,2]
[402685369,1768803046388,-177.13478141,0.00017999,2]
[402685370,1768803046398,-500.0,0.00017999,2]
[402685371,1768803046407,-500.0,0.00017999,2]
[402685372,1768803046417,-500.0,0.00017999,2]
[402685373,1768803046428,-500.0,0.00017999,2]
[402685374,1768803046438,-500.0,0.00017999,2]
[402685375,1768803046448,-511.10431069,0.00017999,2]
[402685376,1768803046458,-500.0,0.00017999,2]
[402685377,1768803046468,-500.0,0.00017999,2]
[402685378,1768803046478,-500.0,0.00017999,2]
[402685379,1768803046488,-500.0,0.00017999,2]
[402685380,1768803046498,-500.0,0.00017999,2]
[402685381,1768803046508,-154.14104545,0.00018,2]
[402685382,1768803046518,-155.52459848,0.00018,2]
[402685383,1768803046528,-150.0,0.00018,2]
[402685384,1768803046537,-155.45042616,0.00018,2]
[402685385,1768803046547,-154.75286206,0.00018,2]
[402685386,1768803046557,-181.00021064,0.00018,2]
[402685387,1768803046567,-1567423.64348725,0.00018,2]
[402685388,1768803047448,-1334.09999972,0.00018,2]
[402685389,1768803049127,-1.7e-07,0.00018,2]
[402685390,1768803049140,-588.0,0.00018,2]
[402685391,1768803049623,1458.42,0.00015234,2]
[402685392,1768803050150,-281.06149667,0.00015953,2]
[402685393,1768803050162,-1458.42,0.00015996,2]
[402685394,1768803050171,-1458.42,0.00016758,2]
[402685395,1768803050180,-2660.61082866,0.00018,2]
[402685396,1768803050191,-6742.913408,0.00018,2]
[402685397,1768803050203,-855.49614542,0.00018,2]
[402685398,1768803050214,-333.44283979,0.00018,2]
[402685399,1768803050226,-334.64227692,0.00018,2]
[402685400,1768803050282,-616.56567514,0.00018,2]
[402685401,1768803050352,-594.41988079,0.00018,2]
[402685402,1768803050364,-1161.0,0.00018,2]
[402685403,1768803050375,-1058.32946893,0.00018,2]
[402685404,1768803050387,-621.71764742,0.00018,2]
[402685405,1768803050398,-1494.489,0.00018,2]
[402685406,1768803050409,-2004.87526858,0.00018,2]
[402685407,1768803050421,-1554.87227009,0.00018,2]
[402685408,1768803050433,-613.63686125,0.00018,2]
[402685409,1768803050452,-500.0,0.00018,2]
[402685410,1768803051527,-566.0,0.00017769,2]
[402685411,1768803051536,-1595.047689,0.00018,2]
[402685412,1768803303313,301.02,0.00026116,120]
[402685413,1768803303898,301.02,0.00026166,120]
[402685414,1768803304451,301.02,0.00027359,120]
[402685415,1768803320892,-253.45220153,0.00015596,2]
[402685416,1768803322434,-165.46142959,0.00015596,2]
[402685417,1768803324449,-391.9355504,0.00015596,2]
[402685418,1768803326781,-189.15081848,0.00015596,2]
[402685419,1768803326807,-113.81428159,0.00015596,2]
[402685420,1768803328979,-73.82593649,0.00015596,2]
[402685421,1768803329006,-190.88173163,0.000156,2]
[402685422,1768803330470,-329.22826837,0.000156,2]
[402685423,1768803330495,-61.00948946,0.00015695,2]
[402685424,1768803367251,165.84,0.00027397,120]
[402685425,1768803411584,-195.98,0.00015695,2]
[402685426,1768803413693,-235.51839424,0.00015695,2]
[402685427,1768803418032,-215.70872266,0.00015695,2]
[402685428,1768803421333,-178.56871324,0.00015695,2]
[402685429,1768803423921,-188.14973485,0.00015695,2]
[402685430,1768803426972,-125.06494555,0.00015695,2]
[402685431,1768803426995,-62.47587402,0.00015695,2]
[402685432,1768803429967,-237.52412598,0.00015695,2]
[402685433,1768803429996,-62.47587402,0.00015695,2]
[402685434,1768803431393,-237.52412598,0.00015695,2]
[402685435,1768803431416,-85.11139429,0.00015695,2]
[402685436,1768803434465,-193.314864,0.00015695,2]
[402685437,1768803437932,-21.57374171,0.00015695,2]
[402685438,1768803437956,-210.95999258,0.00015696,2]
[402685439,1768803438954,-39.04000742,0.00015696,2]
[402685440,1768803438978,-200.57604426,0.00015696,2]
[402685441,1768803441105,-229.56785902,0.00015696,2]
[402685442,1768803443791,-69.85609672,0.00015696,2]
[402685443,1768803443816,-230.14390311,0.00015696,2]
[402685444,1768803445883,-269.85609689,0.00015696,2]
[402685445,1768803445907,-190.62554114,0.00015696,2]
[402685446,1768803501005,-257.15802416,0.00015695,2]
[402685447,1768803561011,-176.38518219,0.00015596,2]
[402685448,1768803563508,-11.25503588,0.00015596,2]
[402685449,1768803563531,-200.0,0.0001564,2]
[402685450,1768803563554,-88.74496412,0.00015695,2]
[402685451,1768803646271,222.077999,0.0001544,2]
[402685452,1768803654576,200.0,0.0001544,2]
[402685453,1768803741236,150.0,0.00015406,2]
[402685454,1768803808315,-279.0,0.00015518,2]
[402685455,1768803809032,-250.0,0.00015557,2]
[402685456,1768803809057,-176.30234567,0.00015595,2]
[402685457,1768803812759,-235.83213308,0.00015595,2]
[402685458,1768803823435,-87.86552125,0.00015595,2]
[402685459,1768803839317,-1200.0,0.00015695,2]
[402685460,1768803839357,-300.0,0.00015695,2]
[402685461,1768803840547,-309.37445886,0.00015696,2]
[402685462,1768803840571,-177.13478141,0.00015696,2]
[402685463,1768803840595,-190.51067263,0.00015696,2]
[402685464,1768803841353,300.0,0.00015695,2]
[402685465,1768803842088,245.0,0.00015695,2]
[402685466,1768803842139,-183.665,0.00015696,2]
[402685467,1768803846456,-125.82432737,0.00015696,2]
[402685468,1768803846480,-62.15668037,0.00015696,2]
[402685469,1768803847991,-181.96285593,0.00015696,2]
[402685470,1768803850038,-175.171079,0.00015696,2]
[402685471,1768803852279,197.8229,0.00015595,2]
[402685472,1768803852712,168.81812118,0.00015596,2]
[402685473,1768803854290,-80.7093847,0.00015696,2]
[402685474,1768803854325,-500.0,0.00015696,2]
[402685475,1768803854356,-500.0,0.00015696,2]
[402685476,1768803854386,-500.0,0.00015696,2]
[402685477,1768803854416,-500.0,0.00015696,2]
[402685478,1768803854447,-500.0,0.00015696,2]
[402685479,1768803854477,-500.0,0.00015696,2]
[402685480,1768803854509,-500.0,0.00015696,2]
[402685481,1768803854540,-500.0,0.00015696,2]
[402685482,1768803854569,-500.0,0.00015696,2]
[402685483,1768803854598,-338.5912306,0.00015696,2]
[402685484,1768803855162,-161.4087694,0.00015696,2]
[402685485,1768803855191,-500.0,0.00015696,2]
[402685486,1768803857417,600.0,0.0001569,2]
[402685487,1768803871836,-195.0,0.00015705,2]
[402685488,1768803895795,-2488.68,0.00015715,2]
[402685489,1768803897939,5022.65,0.00015683,2]
[402685490,1768803897963,9431.2591597,0.00015683,2]
[402685491,1768803903165,150.5,0.00026116,120]
[402685492,1768803904334,150.5,0.00026166,120]
[402685493,1768803904404,150.5,0.00027359,120]
[402685494,1768803937379,-150.0,0.00015759,2]
[402685495,1768803937403,-8.94175877,0.00015823,2]
[402685496,1768803967853,-186.05824123,0.00015823,2]
[402685497,1768803967876,-1.48225877,0.00015839,2]
[402685498,1768803982622,-167.33586239,0.00015839,2]
[402685499,1768803998034,-1200.0,0.00015971,2]
[402685500,1768803998065,-300.0,0.00015971,2]
[402685501,1768804029055,8535.1488276,0.00015718,2]
[402685502,1768804036679,200.0,0.000158,5]
[402685503,1768804038816,400.0,0.000159,5]
[402685504,1768804066362,524.87565,0.0002739,120]
[402685505,1768804069259,864.8611724,0.00014,2]
[402685506,1768804069283,159.02901746,0.00014,2]
[402685507,1768804083219,6584.66406253,0.0001439,2]
[402685509,1768804101402,500.0,0.00015401,2]
[402685510,1768804107122,2278.05719955,0.0001421,7]
[402685511,1768804110510,2044.22959712,0.00015807,2]
[402685512,1768804127431,226.29,0.0001538,2]
[402685513,1768804141760,300.0,0.00015971,2]
[402685515,1768804174113,168.81812116,0.00015872,2]
[402685516,1768804201275,300.0,0.00015971,2]
[402685517,1768804201655,1200.0,0.00015971,2]
[402685518,1768804201685,300.0,0.00015971,2]
[402685537,1768804232130,-365.53975245,0.00015972,2]
[402685538,1768804232140,-500.0,0.00015972,2]
[402685539,1768804232150,-80.3356354,0.00015972,2]
[402685541,1768804232162,-419.6643646,0.00015972,2]
[402685543,1768804232172,-465.9956354,0.00015972,2]
[402685547,1768804232194,-107.428713,0.00015972,2]
[402685549,1768804232204,-500.0,0.00015972,2]
[402685551,1768804232214,-287.32610177,0.00015972,2]
[402685553,1768804232224,-250.0,0.00015972,2]
[402685555,1768804232233,-423.92,0.00015972,2]
[402685556,1768804232242,-231.32518523,0.00015972,2]
[402685559,1768804232261,-2835.67881477,0.00015972,2]
[402685560,1768804232271,-173.753,0.00015972,2]
[402685561,1768804232281,-500.56001422,0.00015973,2]
[402685562,1768804232295,-500.72722951,0.00015973,2]
[402685563,1768804232305,-175.52583716,0.00015973,2]
[402685564,1768804232315,-225.06395237,0.00015973,2]
[402685565,1768804232325,-500.0,0.00015973,2]
[402685566,1768804232336,-177.39485597,0.00015973,2]
[402685567,1768804232345,-166.18234215,0.00015973,2]
[402685568,1768804232355,-164.39233215,0.00015973,2]
[402685569,1768804232365,-500.0,0.00015973,2]
[402685570,1768804232374,-500.29122605,0.00015973,2]
[402685571,1768804232383,-500.90676825,0.00015973,2]
[402685572,1768804232393,-170.05301056,0.00015973,2]
[402685573,1768804232402,-173.50193494,0.00015973,2]
[402685574,1768804232412,-173.29758553,0.00015973,2]
[402685575,1768804232421,-500.85769166,0.00015973,2]
[402685576,1768804232430,-500.00927331,0.00015973,2]
[402685577,1768804232440,-500.0,0.00015973,2]
[402685578,1768804232449,-500.90022635,0.00015973,2]
[402685579,1768804232459,-500.8031851,0.00015973,2]
[402685580,1768804232470,-500.29722097,0.00015973,2]
[402685581,1768804232479,-501.14549523,0.00015973,2]
[402685582,1768804232488,-500.306846,0.00015973,2]
[402685583,1768804232498,-500.0,0.00015973,2]
[402685584,1768804232508,-167.82255967,0.00015973,2]
[402685585,1768804232518,-500.0,0.00015973,2]
[402685586,1768804232532,-500.34809842,0.00015973,2]
[402685587,1768804232541,-162.77422668,0.00015973,2]
[402685588,1768804232550,-500.0,0.00015973,2]
[402685589,1768804232560,-217.2636176,0.00015973,2]
[402685590,1768804232571,-163.6018566,0.00015973,2]
[402685591,1768804232581,-316.85507255,0.00015973,2]
[402685592,1768804232590,-166.52784809,0.00015973,2]
[402685593,1768804232601,-500.0,0.00015973,2]
[402685594,1768804232610,-500.0,0.00015973,2]
[402685595,1768804232620,-500.0,0.00015973,2]
[402685596,1768804232631,-500.0,0.00015973,2]
[402685597,1768804232640,-500.26546452,0.00015973,2]
[402685598,1768804232652,-500.51333682,0.00015973,2]
[402685599,1768804232662,-500.21559401,0.00015973,2]
[402685600,1768804232672,-500.0,0.00015973,2]
[402685601,1768804232682,-500.0,0.00015973,2]
[402685602,1768804232994,-166.10270066,0.00015973,2]
[402685603,1768804233005,-502.42035397,0.00015973,2]
[402685604,1768804233014,-500.44221529,0.00015973,2]
[402685605,1768804233024,-500.72573267,0.00015973,2]
[402685606,1768804233033,-500.40073383,0.00015973,2]
[402685607,1768804233043,-500.0,0.00015973,2]
[402685608,1768804233054,-169.36111687,0.00015973,2]
[402685609,1768804233064,-500.0,0.00015973,2]
[402685610,1768804233074,-500.26090595,0.00015973,2]
[402685611,1768804233083,-500.0,0.00015973,2]
[402685612,1768804233093,-500.0,0.00015973,2]
[402685613,1768804233102,-500.0,0.00015973,2]
[402685614,1768804233111,-502.88288877,0.00015973,2]
[402685615,1768804233121,-500.0,0.00015973,2]
[402685616,1768804233130,-501.22945801,0.00015973,2]
[402685617,1768804233139,-500.0,0.00015973,2]
[402685618,1768804233149,-500.30894092,0.00015973,2]
[402685619,1768804233158,-151.0,0.00015997,2]
[402685620,1768804233167,-45571.88244079,0.00016,4]
[402685630,1768804238461,-24.93573259,0.00015999,2]
[402685631,1768804238472,-559.98223862,0.00015999,2]
[402685632,1768804238481,-225.63759074,0.00015999,2]
[402685633,1768804238491,-240.22228665,0.00015999,2]
[402685634,1768804238500,-23819.20501178,0.00016,4]
[402685635,1768804238511,-4435.85978609,0.00016,4]
[402685636,1768804238526,-4617.51286413,0.00016,4]
[402685637,1768804238554,-451.14186505,0.00016,4]
[402685638,1768804238579,-7824.2783097,0.00016,4]
[402685639,1768804240197,-191.23175708,0.00015999,2]
[402685640,1768804240207,-383134.92098182,0.00016,4]
[402685641,1768804240216,-832.99271074,0.00016034,2]
[402685642,1768804240225,-500.0,0.00016134,2]
[402685643,1768804240235,-500.0,0.00016134,2]
[402685644,1768804240244,-884.90822683,0.0001614,2]
[402685645,1768804240254,-607.35295779,0.00016181,2]
[402685646,1768804240263,-9999.99,0.00016181,2]
[402685647,1768804240272,-513.8,0.00016181,2]
[402685648,1768804240282,-3297.18,0.00016181,2]
[402685649,1768804240293,-150.0,0.000162,2]
[402685650,1768804240303,-150.0,0.000162,2]
[402685651,1768804240312,-150.0,0.000162,2]
[402685652,1768804240321,-150.0,0.000162,2]
[402685653,1768804240331,-150.0,0.000162,2]
[402685654,1768804240339,-150.0,0.000162,2]
[402685655,1768804240349,-52667.59181463,0.000162,5]
[402685656,1768804240358,-14044.61922147,0.00016236,2]
[402685657,1768804240367,-677.21941462,0.00016238,2]
[402685658,1768804240376,-150.99,0.00016238,2]
[402685659,1768804240385,-9822.79,0.00016238,2]
[402685660,1768804240394,-423.92,0.00016245,2]
[402685661,1768804240403,-13764.90298623,0.00016256,2]
[402685662,1768804240412,-150.0,0.00016295,2]
[402685663,1768804240422,-832.99271072,0.00016301,2]
[402685664,1768804240431,-999.99,0.00016327,2]
[402685665,1768804240439,-150.99,0.00016327,2]
[402685666,1768804240448,-3426.15,0.00016327,2]
[402685667,1768804240457,-305.22366862,0.00016327,2]
[402685668,1768804240466,-500.0,0.00016327,2]
[402685669,1768804240475,-202.40369951,0.00016327,2]
[402685670,1768804240484,-200.0,0.00016327,2]
[402685671,1768804240493,-500.0,0.00016327,2]
[402685672,1768804240502,-500.0,0.00016327,2]
[402685673,1768804240512,-500.0,0.00016327,2]
[402685674,1768804240522,-500.0,0.00016327,2]
[402685675,1768804240533,-500.0,0.00016327,2]
[402685676,1768804240542,-500.0,0.00016327,2]
[402685678,1768804240551,-200.0,0.00016327,2]
[402685680,1768804240560,-500.0,0.00016327,2]
[402685681,1768804240571,-500.0,0.00016327,2]
[402685682,1768804240580,-500.0,0.00016327,2]
[402685683,1768804240590,-500.0,0.00016327,2]
[402685684,1768804240602,-500.0,0.00016327,2]
[402685685,1768804240611,-500.0,0.00016327,2]
[402685686,1768804240621,-500.0,0.00016327,2]
[402685687,1768804240631,-500.0,0.00016327,2]
[402685688,1768804240642,-500.0,0.00016327,2]